Cogmind - Beta 15 @@@ ROGUE MODE // 2025.06.07 @ 15:09:30 Player: Duduxx Result: Destroyed by WP-M86(R) with Subdweller Machine Gun Performance ------------- Evolutions (0) 0 Regions Visited (2) 400 Robots Destroyed (16) 80 Value Destroyed (299) 299 Prototype IDs (2) 40 Alien Tech Used (0) 0 Bonus (0) 0 TOTAL SCORE: 819 Bonus ------- None Cogmind --------- Core Integrity 0/250 Matter 256/300 Energy 200/200 System Corruption 1% Temperature Cool (0) Movement Treading (160) Location -10/Subcaves Parts ------- > --- POWER (1) -------- Subdweller Power Source > --- PROPULSION (2) --- Spiked Treads > --- UTILITY (2) ------ Small Storage Unit Core Shielding > --- WEAPON (2) ------- Battle Rifle > --- INVENTORY (8) ---- Wheel Compact Wheel Structural Scanner Improved Terrain Scanner Mining Claw Peak State ------------ > --- POWER ------------ Light Ion Engine > --- PROPULSION ------- Light Treads Spiked Treads > --- UTILITY ---------- Small Storage Unit Core Shielding > --- WEAPON ----------- Battle Rifle Flamer > --- INVENTORY -------- Subdweller Power Source Wheel Compact Wheel Structural Scanner Improved Terrain Scanner Mining Claw [Rating: 10] Favorites ----------- Power Light Ion Engine Engine Light Ion Engine Propulsion Light Treads Treads Light Treads Utility Small Storage Unit Device Improved Terrain Scanner Storage Small Storage Unit Protection Core Shielding Weapon Medium Laser Energy Gun Medium Laser Ballistic Gun Assault Rifle Special Weapon Flamer Slashing Weapon Mining Claw Build | -11 -10 -10 ------- Run | Yrd Mat Sub Slots Evolved . | . . . Power . | . . . Propulsion . | . . . Utility . | . . . Weapon . | . . . Parts Attached 15 | 7 3 5 Power 3 | 1 . 2 Engine 3 | 1 . 2 Core . | . . . Reactor . | . . . Propulsion 3 | 2 . 1 Treads 3 | 2 . 1 Leg . | . . . Wheel . | . . . Hover . | . . . Flight . | . . . Utility 4 | 2 2 . Device 2 | 1 1 . Storage 1 | 1 . . Processor . | . . . Hackware . | . . . Protection 1 | . 1 . Artifact . | . . . Weapon 5 | 2 1 2 Energy Gun 1 | 1 . . Energy Cannon . | . . . Ballistic Gun 2 | 1 . 1 Ballistic Cannon . | . . . Launcher . | . . . Special Weapon 1 | . . 1 Impact Weapon . | . . . Slashing Weapon 1 | . 1 . Piercing Weapon . | . . . Special Melee Weapon . | . . . Unidentified Prototypes . | . . . Parts Lost 7 | . . 7 Power 2 | . . 2 Propulsion 2 | . . 2 Utility . | . . . Weapon 3 | . . 3 Highest Loss Streak 3 | . . 3 To Critical Strikes . | . . . Average Backups 4 | 2 5 5 Power . | . 1 . Propulsion 1 | 1 2 2 Utility 1 | . 1 2 Weapon . | . . . Tool/Special . | . . . Unused Backups 2 | . . 2 Power . | . . . Propulsion 2 | . . 2 Utility . | . . . Weapon . | . . . Tool/Special . | . . . Average Slot Usage (%) 97 | . 100 90 Engine 14 | . 14 14 Treads 27 | . 28 26 Device 8 | . 11 1 Storage 14 | . 14 14 Protection 5 | . 2 12 Energy Gun 10 | . 13 . Ballistic Gun 10 | . 11 8 Special Weapon 1 | . . 5 Slashing Weapon 3 | . 2 6 Peak Build Rating 10 | 9 9 10 Average Rating 7 | 5 7 8 On Entrance 5 | . 9 7 Naked Turns . | . . . Heaviest Build 13 | 13 13 13 Greatest Support 40 | 40 40 40 Greatest Overweight (x) . | . . . Average Overweight (x) . | . . . Largest Inventory Capacity 8 | 8 8 8 Average Capacity 7 | 7 8 8 Most Carried 6 | 3 6 6 Average Carried 4 | 2 5 5 Final Capacity 8 | 8 8 8 Final Carried 6 | 3 6 5 Class Distribution -------------------- 100% | Mutant Dominant Class ---------------- Mutant | -10/Materials Mutant | -10/Subcaves Resources | -11 -10 -10 ----------- Run | Yrd Mat Sub Matter Collected 492 | 213 177 102 Remotely . | . . . Salvage Created 443 | 59 298 86 Parts 34 | 6 23 5 Haulers Intercepted 1 | . 1 . Recyclers Shooed 1 | . 1 . Parts Field Recycled . | . . . Retrieved Matter . | . . . Parts Self-Destructed . | . . . Prevented . | . . . Kills | -11 -10 -10 ------- Run | Yrd Mat Sub Combat Hostiles Destroyed 12 | . 10 2 Melee 1 | . . 1 Guns 11 | . 10 1 Classes Destroyed 5 | 1 3 1 Tunneler 3 | 3 . . Hauler 1 | . 1 . Swarmer 6 | . 6 . Grunt 4 | . 4 . Subdweller 2 | . . 2 Best Kill Streak 5 | 3 5 1 Combat Bots Only 5 | . 5 1 Max Kills in Single Turn 2 | 1 2 1 Gunslinging 1 | . 1 . Exploded . | . . . Melee 1 | . . 1 Uniques/NPCs Destroyed . | . . . Combat | -11 -10 -10 -------- Run | Yrd Mat Sub Hostile Shots Fired 92 | . 55 37 Missed 25 | . 16 9 Hits 67 | . 39 28 Projectile 67 | . 39 28 Critical Strikes 2 | . . 2 Actively Blocked 2 | . . 2 Damage Taken 1105 | . 394 711 Core 264 | . 56 208 Absorbed by Shields . | . . . Redirected to Shielding 31 | . 3 28 Core Remaining (%) 100 | 100 . . Volleys Fired 47 | 4 27 16 Largest 2 | 2 2 2 Hottest 125 | 70 70 125 Shots Fired 79 | 8 53 18 Gun 78 | 8 53 17 Cannon . | . . . Launcher . | . . . Special 1 | . . 1 Kinetic 46 | 4 27 15 Thermal 33 | 4 26 3 Explosive . | . . . Electromagnetic . | . . . Robot Hit Streak 8 | 6 5 8 Robot Miss Streak 4 | 1 4 2 Penetration Max . | . . . Secondary Targets 3 | . 3 . Max Gunslinging Chain 1 | . 1 . Shots Hit Robots 51 | 6 29 16 Core Hits 24 | 3 16 5 Critical Kills . | . . . Critical Parts Destroyed . | . . . Critical Strikes 2 | . 2 . Burn 2 | . 2 . Melee Attacks 11 | . 8 3 Impact . | . . . Slashing 11 | . 8 3 Piercing . | . . . Sneak Attacks . | . . . Combat Hostiles . | . . . Follow-up Attacks . | . . . Damage Inflicted 733 | 74 418 241 Guns 675 | 74 416 185 Cannons . | . . . Explosions . | . . . Melee 46 | . . 46 Ramming 2 | . 2 . Kinetic 361 | 36 153 172 Thermal 324 | 38 263 23 Explosive . | . . . Electromagnetic . | . . . Impact . | . . . Slashing 46 | . . 46 Piercing . | . . . Highest Corruption 1 | . 1 1 Average Corruption 1 | . 1 1 Corruption Purged . | . . . Corruption Blocked . | . . . Overload Shots . | . . . Overflow Damage . | . . . Projectiles . | . . . Explosions . | . . . Melee . | . . . Knockbacks . | . . . Impact . | . . . Kinetic . | . . . Secondary . | . . . Self-Inflicted Damage . | . . . Shots . | . . . Rammed 1 | . 1 . Targets Rammed 1 | . 1 . Kicked . | . . . Crushed . | . . . Highest Temperature 435 | 36 141 435 Average Temperature 84 | 19 68 190 Received Heat Transfer 880 | . 150 730 Siege Activations . | . . . Martial Activations . | . . . Shielding Activations . | . . . Robots Disrupted . | . . . Combat Hostiles . | . . . Robots Corrupted . | . . . Combat Hostiles . | . . . Parts Fried . | . . . Impact Corruptions . | . . . Robots Melted . | . . . Combat Hostiles . | . . . Parts Melted 2 | . 1 1 Heat Transferred 1153 | 111 925 117 Parts Sabotaged . | . . . Parts Stolen . | . . . Parts Stripped . | . . . Power Chain Reactions . | . . . Alert | -11 -10 -10 ------- Run | Yrd Mat Sub Maximum Alert Level . | . . . Low Security (%) 100 | 100 100 . Level 1 . | . . . Level 2 . | . . . Level 3 . | . . . Level 4 . | . . . Level 5 . | . . . High Security . | . . . Max Security . | . . . Peak Influence 122 | 15 122 . Initial 3 | . 3 . Average 32 | 2 36 . Influence Increases 270 | 15 255 . Destroy 0b10 Robot/C 200 | . 200 . Destroy 0b10 Robot/NC 20 | 15 5 . Destroy Leader 22 | . 22 . Successful Hack 9 | . 9 . Destroy Structure 4 | . 4 . Lose Combat Pursuer 15 | . 15 . Influence Decreases 270 | 10 200 60 Entered New Map 31 | . 2 29 Time Decay 209 | 10 198 1 Lost Part 30 | . . 30 Squads Dispatched 1 | . 1 . Investigation . | . . . Extermination . | . . . Reinforcement 1 | . 1 . Assault . | . . . Garrison . | . . . Intercept . | . . . Searches Triggered . | . . . Construction Impeded . | . . . Haulers Reinforced . | . . . Active Scanning Responses . | . . . Cargo Convoy Interrupts . | . . . Stealth | -11 -10 -10 --------- Run | Yrd Mat Sub Distress Signals 1 | . 1 . Communications Jammed . | . . . Distress Signals . | . . . Times Spotted 21 | . 17 4 Peak Tracking Total 8 | . 8 2 Tactical Retreats 1 | . 1 . Traps | -11 -10 -10 ------- Run | Yrd Mat Sub Traps Triggered 2 | . . 2 Indirectly . | . . . Trap Hack Attempts . | . . . Triggered . | . . . Disarmed . | . . . Reprogrammed . | . . . Reused . | . . . Traps Extracted . | . . . Installed . | . . . Triggered . | . . . Machines | -11 -10 -10 ---------- Run | Yrd Mat Sub Machines Disabled . | . . . Max in Single Turn . | . . . Machines Repaired . | . . . Machines Dismantled . | . . . Machines Sabotaged . | . . . Overloaded Fab Kills . | . . . Hacking | -11 -10 -10 --------- Run | Yrd Mat Sub Machines Accessed 2 | . 2 . Terminals 2 | . 2 . Fabricators . | . . . Repair Stations . | . . . Recycling Units . | . . . Scanalyzers . | . . . Garrison Access . | . . . Total Hacks 7 | . 7 . Successful 4 | . 4 . Failed 3 | . 3 . Catastrophic 1 | . 1 . Database Lockouts . | . . . Manual 2 | . 2 . Terminals 7 | . 7 . Fabricators . | . . . Repair Stations . | . . . Recycling Units . | . . . Scanalyzers . | . . . Garrison Access . | . . . Terminal Hacks 4 | . 4 . Robot Analysis 1 | . 1 . Prototype ID Bank 1 | . 1 . Emergency Access Points 1 | . 1 . Hauler Manifests 1 | . 1 . Fabricator Hacks . | . . . Repair Station Hacks . | . . . Recycling Unit Hacks . | . . . Scanalyzer . | . . . Garrison Access Hacks . | . . . Unauthorized Hacks . | . . . Terminals . | . . . Fabricators . | . . . Repair Stations . | . . . Recycling Units . | . . . Scanalyzers . | . . . Garrison Access . | . . . Data Cores Recovered . | . . . Used . | . . . Hacking Detections 2 | . 2 . Full Trace Events 1 | . 1 . Feedback Events 1 | . 1 . Corruption 1 | . 1 . Feedback Blocked . | . . . Robot Schematics Acquired . | . . . Robots Built . | . . . Authchips . | . . . Time . | . . . Total Robot Build Rating . | . . . Part Schematics Acquired . | . . . Parts Built . | . . . Authchips . | . . . Time . | . . . Total Part Build Rating . | . . . Parts Repaired . | . . . Time . | . . . Parts Recycled . | . . . Recycled Matter . | . . . Retrieved Matter . | . . . Retrieved Components . | . . . Parts Scanalyzed . | . . . Part Schematics Acquired . | . . . Parts Damaged . | . . . Bothacking | -11 -10 -10 ------------ Run | Yrd Mat Sub Used RIF Installer . | . . . Robots Hacked . | . . . Non-combat . | . . . Combat . | . . . Robot Hacks Applied . | . . . Relay Couplers Released . | . . . Fabnet Peak Effective % . | . . . Robots Rewired . | . . . Allies Hacked . | . . . Hacks Repelled . | . . . Allies | -11 -10 -10 -------- Run | Yrd Mat Sub Total Allies . | . . . Largest Group . | . . . Highest-Rated Group . | . . . Highest-Rated Ally . | . . . Total Orders . | . . . Ally Attacks . | . . . Total Damage . | . . . Kills . | . . . Allies Corrupted . | . . . Allies Melted . | . . . Intel | -11 -10 -10 ------- Run | Yrd Mat Sub Active Infowar (turns) 483 | 10 457 16 Terrain 260 | 10 250 . Structural 223 | . 207 16 Robot Analysis Total 1 | . 1 . Derelict Logs Recovered . | . . . Drone Launches . | . . . Drone Recoveries . | . . . Exploration | -11 -10 -10 ------------- Run | Yrd Mat Sub Turns Passed 878 | 87 575 216 Spaces Moved 426 | 46 285 95 Core 10 | 10 . . Treads 416 | 36 285 95 Legs . | . . . Wheels . | . . . Hover . | . . . Flight . | . . . Fastest Speed 50 | 50 160 160 Average Speed 157 | 136 160 160 Slowest Speed 160 | 160 160 160 Overloaded Moves . | . . . Propulsion Burnouts . | . . . Robots Hopped . | . . . Potential Cave-ins . | . . . Cave-ins Triggered . | . . . Exploration Rate (%) 21 | 4 52 7 Regions Visited 2 Branch Regions 1 Pre-discovered Areas . | . . . Known Exits Taken . | . . . Unknown Exits Taken 2 | 1 1 . Scrap Searched 1 | . . 1 Spaces Dug 4 | . 4 . Terrain Destroyed 4 | . 4 . Melee 4 | . 4 . Projectile . | . . . AOE . | . . . Terrain Rammed . | . . . Walls Destroyed . | . . . Machines Disabled . | . . . Actions | -11 -10 -10 --------- Run | Yrd Mat Sub Total 520 | 59 332 129 Wait 6 | . 1 5 Move 424 | 45 284 95 Hop . | . . . Pick Up 5 | 3 1 1 Fast Attach 12 | 7 2 3 Attach 3 | . . 3 Detach 3 | . 2 1 Swap 8 | . 6 2 Drop . | . . . Fire 47 | 4 27 16 Melee 11 | . 8 3 Ram . | . . . Kick . | . . . Crush 1 | . 1 . Escape Stasis . | . . . Rewire . | . . . Trap . | . . . Miscellaneous . | . . . Route ------- -11/Scrapyard -10/Materials (discovered 3 exits: [*Mat x2] / [*Sub]) -10/Subcaves History --------- Turn | Location | Event 11 | -11/Scrapyard | Discovered new exit (range 15) 88 | -11/Scrapyard | Entered Materials 209 | -10/Materials | Discovered new exit (range 14) 309 | -10/Materials | Build established: Mutant 582 | -10/Materials | Discovered new exit (range 16) 640 | -10/Materials | Discovered new exit (range 5) 663 | -10/Materials | Entered Subcaves 671 | -10/Subcaves | Ambushed by Subdwellers from Twisted Machinery 675 | -10/Subcaves | Core integrity fell below 50% 701 | -10/Subcaves | Core integrity fell below 20% 709 | -10/Subcaves | Lost 3 parts (1p2w) 879 | -10/Subcaves | Destroyed by WP-M86(R) with Subdweller Machine Gun Last Messages --------------- 00726_ Acquired Sub. Power Source. 00757_ Searching scrap... 00757_ Found Flamer. 00757_ Found Battle Rifle. 00757_ Found 40 Matter. 00760_ Acquired Battle Rifle. 00762_ Acquired 10 matter. 00766_ Acquired Flamer. 00767_ Acquired 10 matter. 00786_ Triggered Piercing Trap. 00786_ Spikes shoot up from the floor. 00786_ Critical hit (Impale). 00812_ Triggered Piercing Trap. 00812_ Spikes shoot up from the floor. 00812_ Critical hit (Impale). 00852_ Lgt. Ion Engine destroyed. 00854_ Flamer destroyed. 00858_ Lgt. Treads destroyed. 00859_ Sub. Laser melted. 00859_ H2-NYJ(R) destroyed. Map ----- +----------------------------------------------------+ | ?????????????????????????????????????????????????? | | ?????????????????????????????????????????????????? | | ?????????????????????????????????????????????????? | | ?????????????????????????????????????????????????? | | ?????????????????????????????????????????????????? | | ?????????????????????????????????????????????????? | | ?????????????????????????????????????????????????? | | ?????????????????????????????????????????????????? | | ?????????????????????????????????????????????????? | | ?????????????????????????????????????????????????? | | ?????????????????????????????????????????????????? | | ?????????????????????????????????????????????????? | | ?????????????????????????????????????????????????? | | ?????????????????????????????????????????????????? | | ?????????????????????????????????????????????????? | | ??????????????????????????????????????????? ????? | | ??????????????????????????????????????##??# ????? | | ?????????????????????????????????????# ### ????? | | ????????????????????????????????????# ?????? | | ????????????????????????????##????## ??????? | | ????????????????????????????#"????# #???????? | | ????????????????????????????# ##??# ##??????? | | ????????????????????????????? ##?# #??????? | | ?????????????????????#??###??# "### #??????? | | ?????????????######### ## #### ## #???????? | | ?????????? @ ##""" #???????? | | ?????????????? """ R ! ##" #???????? | | ???????????????"" #"# % ## #???????? | | ????????????????? """""" " #???????? | | ??????????????? """""""" ## ## #???????? | | ????????????????####"""""" ## ###### #??????????? | | ???????????????????##"" #######???# ####???????? | | ??????????????????????##??????????# ^ #???????? | | ??????????????????????????????????### ^^##???????? | | ????????????????????????????????????# ###??????? | | ????????????????????????????????????# #??????? | | ????????????????????????????????????## #??????? | | ???????????????????????????????###?#### #??????? | | ??????????????????????????????## ### # #??????? | | ??????????????????????????????# #??????? | | ??????????????????????????????# ^ #??????? | | ??????????????????????????????## # ##??????? | | ???????????????????????????????# ### ##???????? | | ??????????????????????????????# ### #???????? | | ??????????????????????????????## ## ##???????? | | ???????????????????????????????# #### #???????? | | ???????????????????????????????#####?## ##???????? | | ###??????????????????????????????????# #????????? | | ###??????????????????????????????????# #????????? | | ??????????????????????????????????## ##???????? | +----------------------------------------------------+ Best States ------------- Heat Dissipation 25 Energy Generation 15 Energy Capacity 200 Matter Stores 300 Matter Capacity 300 Sight Range 16 Terrain Scan Range 16 Terrain Scan Density 10 Core Shielding 20 Evasion (%) 40 Recoil Reduction 2 Item Schematics ----------------- None Robot Schematics ------------------ None Fabricated ------------ Nothing Repaired ---------- Nothing Alien Tech Used ----------------- None Achievements -------------- None Challenges ------------ None Game ------ Seed SurgeMultinovaMeganuke Manual? 0 Play Time 00:07:08 Cumulative 109.2 hours Start 2025.06.07 @ 15:03:47 End 2025.06.07 @ 15:09:30 Sessions 1 Manual Loads 0 Difficulty Rogue Special Mode None Game No. 212 Rogue 212 Adventurer 0 Explorer 0 Win Type - Total 0 Types 0/0/0/0/0/0/0/0/0/0 Lore% 26 Gallery% 45 Achievement% 35 Wizard Run 0 Options --------- Layout 1 ASCII 0 Keyboard 1 Movement Arrows Keybinds 0 Fullscreen 2 Font 24/Smallcaps Map View 50x35 Zoom Use 0% Tactical HUD 1 Map Filters NONE Filters NONE Steam 1 RUN: fb74c2f3-9180-439c-ad55-7091e767260a